fUSD/lending_fUSD_20260405
["ID","MTS","AMOUNT","RATE_DAILY","PERIOD"]
[419814236,1775394645856,-712.7898975,0.00013698,2]
[419814237,1775394645866,-500.0,0.00013698,2]
[419814238,1775394645876,-500.0,0.00013698,2]
[419814239,1775394645886,-500.0,0.00013698,2]
[419814240,1775394645896,-500.0,0.00013698,2]
[419814241,1775394645906,-500.0,0.00013698,2]
[419814242,1775394645915,-500.0,0.00013698,2]
[419814243,1775394645925,-500.0,0.00013698,2]
[419814244,1775394645935,-500.0,0.00013698,2]
[419814245,1775394645945,-500.0,0.00013698,2]
[419814246,1775394645955,-500.0,0.00013698,2]
[419814247,1775394645965,-500.0,0.00013698,2]
[419814248,1775394645975,-500.0,0.00013698,2]
[419814249,1775394645985,-500.0,0.00013698,2]
[419814250,1775394645995,-277.80362492,0.00013698,2]
[419814251,1775394646005,-500.0,0.00013698,2]
[419814252,1775394646015,-500.0,0.00013698,2]
[419814253,1775394646025,-500.0,0.00013698,2]
[419814254,1775394646034,-500.0,0.00013698,2]
[419814255,1775394646044,-500.0,0.00013698,2]
[419814256,1775394646054,-500.0,0.00013698,2]
[419814257,1775394646064,-500.0,0.00013698,2]
[419814258,1775394646074,-500.0,0.00013698,2]
[419814259,1775394646084,-500.0,0.00013698,2]
[419814260,1775394646094,-500.0,0.00013698,2]
[419814261,1775394646103,-500.0,0.00013698,2]
[419814262,1775394646114,-500.0,0.00013698,2]
[419814263,1775394646123,-500.0,0.00013698,2]
[419814264,1775394646133,-500.0,0.00013698,2]
[419814265,1775394646143,-500.0,0.00013698,2]
[419814266,1775394646153,-500.0,0.00013698,2]
[419814267,1775394646163,-420.19790691,0.00013698,2]
[419814268,1775394646173,-963.2,0.00013698,2]
[419814269,1775394646183,-963.2,0.00013698,2]
[419814270,1775394646193,-963.2,0.00013698,2]
[419814271,1775394646203,-963.2,0.00013698,2]
[419814272,1775394646212,-963.2,0.00013698,2]
[419814273,1775394646223,-963.2,0.00013698,2]
[419814274,1775394646235,-963.2,0.00013698,2]
[419814275,1775394646244,-963.2,0.00013698,2]
[419814276,1775394646255,-963.2,0.00013698,2]
[419814277,1775394646264,-963.2,0.00013698,2]
[419814278,1775394646274,-963.2,0.00013698,2]
[419814279,1775394646284,-963.2,0.00013698,2]
[419814280,1775394646294,-963.2,0.00013698,2]
[419814281,1775394646304,-963.2,0.00013698,2]
[419814282,1775394646314,-963.2,0.00013698,2]
[419814283,1775394646324,-963.2,0.00013698,2]
[419814284,1775394646334,-963.2,0.00013698,2]
[419814285,1775394646344,-963.2,0.00013698,2]
[419814286,1775394646354,-963.2,0.00013698,2]
[419814287,1775394646364,-963.2,0.00013698,2]
[419814288,1775394646374,-963.2,0.00013698,2]
[419814289,1775394646384,-963.2,0.00013698,2]
[419814290,1775394646394,-963.2,0.00013698,2]
[419814291,1775394646404,-963.42513851,0.00013698,2]
[419814292,1775394646414,-500.0,0.00013698,2]
[419814293,1775394646424,-500.0,0.00013698,2]
[419814294,1775394646435,-500.0,0.00013698,2]
[419814295,1775394646444,-500.0,0.00013698,2]
[419814296,1775394646454,-500.0,0.00013698,2]
[419814297,1775394646464,-500.0,0.00013698,2]
[419814298,1775394646475,-500.0,0.00013698,2]
[419814300,1775394646484,-500.0,0.00013698,2]
[419814302,1775394646494,-500.0,0.00013698,2]
[419814304,1775394646504,-500.0,0.00013698,2]
[419814306,1775394646514,-500.0,0.00013698,2]
[419814308,1775394646524,-500.0,0.00013698,2]
[419814310,1775394646534,-500.0,0.00013698,2]
[419814311,1775394646544,-500.0,0.00013698,2]
[419814312,1775394646555,-573.05086874,0.00013698,2]
[419814313,1775394646565,-551.83212521,0.00013698,2]
[419814314,1775394646576,-150.0,0.00013699,2]
[419814315,1775394646586,-150.0,0.00013699,2]
[419814316,1775394646597,-150.0,0.00013699,2]
[419814317,1775394646607,-150.0,0.00013699,2]
[419814318,1775394646616,-150.0,0.00013699,2]
[419814319,1775394646627,-150.0,0.00013699,2]
[419814320,1775394646637,-150.0,0.00013699,2]
[419814321,1775394646647,-150.0,0.00013699,2]
[419814322,1775394646657,-5957.33,0.00013699,2]
[419814323,1775394646667,-476.08,0.00013699,2]
[419814324,1775394646677,-396.73,0.00013699,2]
[419814325,1775394646687,-396.73,0.00013699,2]
[419814326,1775394646697,-264.49,0.00013699,2]
[419814327,1775394646708,-220.41,0.00013699,2]
[419814328,1775394646718,-183.67,0.00013699,2]
[419814329,1775394646729,-153.06,0.00013699,2]
[419814330,1775394646739,-765.33,0.00013699,2]
[419814331,1775394646750,-500.0,0.00013699,2]
[419814333,1775394646760,-500.0,0.00013699,2]
[419814335,1775394646770,-500.0,0.00013699,2]
[419814337,1775394646781,-500.0,0.00013699,2]
[419814340,1775394646792,-211.04857142,0.00013699,2]
[419814342,1775394646802,-500.0,0.00013699,2]
[419814344,1775394646812,-500.0,0.00013699,2]
[419814346,1775394646822,-500.0,0.00013699,2]
[419814348,1775394646832,-385.86149772,0.00013699,2]
[419814350,1775394646841,-500.0,0.00013699,2]
[419814352,1775394646851,-500.0,0.00013699,2]
[419814354,1775394646861,-500.0,0.00013699,2]
[419814356,1775394646870,-500.0,0.00013699,2]
[419814358,1775394646880,-500.0,0.00013699,2]
[419814360,1775394646889,-500.0,0.00013699,2]
[419814363,1775394646911,-500.0,0.00013699,2]
[419814365,1775394646921,-500.0,0.00013699,2]
[419814367,1775394646931,-164.79711181,0.00013699,2]
[419814369,1775394646942,-500.0,0.00013699,2]
[419814371,1775394646952,-500.0,0.00013699,2]
[419814373,1775394646963,-161.91170216,0.00013699,2]
[419814375,1775394646973,-500.0,0.00013699,2]
[419814377,1775394646983,-500.0,0.00013699,2]
[419814379,1775394646994,-500.0,0.00013699,2]
[419814382,1775394647004,-500.0,0.00013699,2]
[419814384,1775394647014,-500.0,0.00013699,2]
[419814386,1775394647024,-500.0,0.00013699,2]
[419814388,1775394647034,-500.0,0.00013699,2]
[419814390,1775394647043,-403.93256284,0.00013699,2]
[419814392,1775394647053,-500.0,0.00013699,2]
[419814394,1775394647064,-500.0,0.00013699,2]
[419814396,1775394647075,-500.0,0.00013699,2]
[419814398,1775394647085,-519.03182682,0.00013699,2]
[419814400,1775394647095,-500.0,0.00013699,2]
[419814402,1775394647104,-500.0,0.00013699,2]
[419814403,1775394647114,-163.60261744,0.00013699,2]
[419814404,1775394647124,-500.13152132,0.00013699,2]
[419814405,1775394647134,-500.0,0.00013699,2]
[419814406,1775394647144,-500.0,0.00013699,2]
[419814407,1775394647154,-500.0,0.00013699,2]
[419814408,1775394647164,-339.79133416,0.00013699,2]
[419814409,1775394647174,-500.0,0.00013699,2]
[419814410,1775394647183,-500.0,0.00013699,2]
[419814411,1775394647193,-500.0,0.00013699,2]
[419814412,1775394647203,-598.99606082,0.00013699,2]
[419814413,1775394647213,-500.0,0.00013699,2]
[419814414,1775394647223,-500.0,0.00013699,2]
[419814415,1775394647234,-160.34417201,0.00013699,2]
[419814416,1775394647243,-569.20510167,0.00013699,2]
[419814417,1775394647254,-500.0,0.00013699,2]
[419814418,1775394647264,-500.0,0.00013699,2]
[419814419,1775394647274,-500.0,0.00013699,2]
[419814420,1775394647284,-168.69935806,0.00013699,2]
[419814421,1775394647294,-518.73332026,0.00013699,2]
[419814422,1775394647304,-500.0,0.00013699,2]
[419814423,1775394647315,-607.20051974,0.00013699,2]
[419814424,1775394647325,-500.0,0.00013699,2]
[419814425,1775394647335,-500.0,0.00013699,2]
[419814426,1775394647346,-500.0,0.00013699,2]
[419814427,1775394647357,-500.0,0.00013699,2]
[419814428,1775394647368,-500.0,0.00013699,2]
[419814429,1775394647379,-162.72924009,0.00013699,2]
[419814430,1775394647390,-210.98153295,0.00013699,2]
[419814431,1775394647399,-515.7358709,0.00013699,2]
[419814432,1775394647410,-500.0,0.00013699,2]
[419814433,1775394647422,-500.50066882,0.00013699,2]
[419814434,1775394647432,-312.74353669,0.00013699,2]
[419814435,1775394647442,-160.7467095,0.00013699,2]
[419814436,1775394647453,-500.0,0.00013699,2]
[419814437,1775394647465,-500.0,0.00013699,2]
[419814438,1775394647475,-202.64993829,0.00013699,2]
[419814439,1775394647486,-154.55,0.00013699,2]
[419814440,1775394647496,-511.89281179,0.00013699,2]
[419814441,1775394647506,-200.0,0.00013836,2]
[419814442,1775394647516,-1788.38122651,0.00013836,2]
[419814443,1775394647527,-1000.0,0.00013875,7]
[419814444,1775394647537,-200.0604195,0.000139,2]
[419814445,1775394647546,-10286.0724003,0.00013901,2]
[419814446,1775394647778,-500.0,0.00013969,2]
[419814447,1775394647787,-150.0,0.00013973,2]
[419814448,1775394647798,-150.0,0.00013973,2]
[419814449,1775394647810,-150.0,0.00013973,2]
[419814450,1775394647819,-150.0,0.00013973,2]
[419814451,1775394647829,-150.0,0.00013973,2]
[419814452,1775394647841,-150.0,0.00013973,2]
[419814453,1775394647850,-216.6819,0.00014,2]
[419814454,1775394647860,-1500.0,0.00014,2]
[419814455,1775394647870,-60000.0,0.00014115,2]
[419814456,1775394647879,-881.74,0.00014211,2]
[419814457,1775394647889,-1613.0,0.00014218,2]
[419814458,1775394647898,-6453.0,0.00014218,2]
[419814459,1775394647908,-336.24951889,0.00014243,2]
[419814460,1775394647918,-150.0,0.00014247,2]
[419814461,1775394647929,-150.0,0.00014247,2]
[419814462,1775394647938,-150.0,0.00014247,2]
[419814463,1775394647948,-150.0,0.00014247,2]
[419814464,1775394647957,-150.0,0.00014247,2]
[419814465,1775394647967,-150.0,0.00014247,2]
[419814466,1775394647977,-1000.0,0.00014247,2]
[419814467,1775394647987,-1000.0,0.00014247,2]
[419814468,1775394647997,-1000.0,0.00014247,2]
[419814469,1775394648007,-1000.0,0.00014247,2]
[419814470,1775394648016,-500.76237275,0.00014247,2]
[419814471,1775394648026,-1000.0,0.00014247,2]
[419814472,1775394648036,-1000.0,0.00014247,2]
[419814473,1775394648046,-1000.0,0.00014247,2]
[419814474,1775394648055,-1000.0,0.00014247,2]
[419814475,1775394648065,-180.00096908,0.00014247,2]
[419814476,1775394648075,-1000.0,0.00014247,2]
[419814477,1775394648085,-1000.0,0.00014247,2]
[419814478,1775394648094,-1000.0,0.00014247,2]
[419814479,1775394648104,-1000.0,0.00014247,2]
[419814480,1775394648114,-1000.0,0.00014247,2]
[419814481,1775394648123,-1000.0,0.00014247,2]
[419814482,1775394648133,-730.09729929,0.00014247,2]
[419814483,1775394648143,-1000.0,0.00014247,2]
[419814484,1775394648154,-1000.0,0.00014247,2]
[419814485,1775394648165,-308.03873246,0.00014247,2]
[419814486,1775394648175,-1000.0,0.00014247,2]
[419814487,1775394648185,-861.43877969,0.00014247,2]
[419814488,1775394648194,-627.70930647,0.00014247,2]
[419814489,1775394648204,-1000.0,0.00014247,2]
[419814490,1775394648213,-1000.0,0.00014247,2]
[419814491,1775394648223,-1000.0,0.00014247,2]
[419814492,1775394648232,-1000.0,0.00014247,2]
[419814493,1775394648242,-1000.0,0.00014247,2]
[419814494,1775394648251,-189.74788311,0.00014247,2]
[419814495,1775394648261,-1000.0,0.00014247,2]
[419814496,1775394648271,-1000.0,0.00014247,2]
[419814497,1775394648280,-1000.0,0.00014247,2]
[419814498,1775394648289,-1000.0,0.00014247,2]
[419814499,1775394648299,-1000.0,0.00014247,2]
[419814500,1775394648308,-1000.0,0.00014247,2]
[419814501,1775394648318,-1000.0,0.00014247,2]
[419814502,1775394648328,-1000.0,0.00014247,2]
[419814503,1775394648337,-743.80429884,0.00014247,2]
[419814504,1775394648347,-790.32775663,0.00014247,2]
[419814505,1775394648357,-500.99241895,0.00014247,2]
[419814506,1775394648367,-1000.0,0.00014247,2]
[419814507,1775394648377,-1000.0,0.00014247,2]
[419814508,1775394648387,-500.0,0.00014247,2]
[419814509,1775394648396,-1000.0,0.00014247,2]
[419814510,1775394648406,-1000.0,0.00014247,2]
[419814511,1775394648415,-1000.0,0.00014247,2]
[419814512,1775394648425,-1000.0,0.00014247,2]
[419814513,1775394648434,-1000.0,0.00014247,2]
[419814514,1775394648443,-1000.0,0.00014247,2]
[419814515,1775394648453,-503.0,0.00014264,3]
[419814516,1775394648462,-191.18,0.00014375,2]
[419814517,1775394648471,-2129.0,0.00014381,2]
[419814518,1775394648481,-5957.33,0.00014384,2]
[419814519,1775394648490,-200.0,0.00014384,2]
[419814520,1775394648499,-765.22925782,0.00014384,2]
[419814521,1775394648509,-10405.80591116,0.0001439,2]
[419814522,1775394648518,-160.0,0.00014484,2]
[419814523,1775394648527,-881.74,0.00014485,2]
[419814524,1775394648538,-785.67,0.00014544,2]
[419814525,1775394648547,-150.0,0.00014666,2]
[419814526,1775394648557,-150.0,0.00014666,2]
[419814527,1775394648566,-150.0,0.00014666,2]
[419814528,1775394648576,-150.0,0.00014666,2]
[419814529,1775394648586,-150.0,0.00014666,2]
[419814530,1775394648595,-150.0,0.00014666,2]
[419814531,1775394648604,-150.0,0.00014666,2]
[419814532,1775394648614,-232.00571695,0.00014666,2]
[419814533,1775394648623,-199.29,0.00014671,2]
[419814534,1775394648632,-881.74,0.00014759,2]
[419814535,1775394648641,-1500.0,0.00014795,2]
[419814536,1775394648650,-1500.0,0.00014795,2]
[419814537,1775394648659,-1500.0,0.00014795,2]
[419814538,1775394648670,-1500.0,0.00014795,2]
[419814539,1775394648679,-1500.0,0.00014795,2]
[419814540,1775394648689,-1500.0,0.00014795,2]
[419814541,1775394648699,-1500.0,0.00014795,2]
[419814542,1775394648708,-1500.0,0.00014795,2]
[419814543,1775394648718,-1500.0,0.00014795,2]
[419814544,1775394648727,-1500.0,0.00014795,2]
[419814545,1775394648737,-1500.0,0.00014795,2]
[419814546,1775394648747,-1500.0,0.00014795,2]
[419814547,1775394648756,-1500.0,0.00014795,2]
[419814548,1775394648766,-1500.0,0.00014795,2]
[419814549,1775394648776,-1227.692277,0.00014795,2]
[419814550,1775394648785,-1515.96545288,0.00014795,2]
[419814551,1775394648794,-953.31303788,0.00014795,2]
[419814552,1775394648803,-1500.0,0.00014795,2]
[419814553,1775394648813,-1500.0,0.00014795,2]
[419814554,1775394648823,-1500.0,0.00014795,2]
[419814555,1775394648832,-1500.0,0.00014795,2]
[419814556,1775394648841,-1318.06583411,0.00014795,2]
[419814557,1775394648851,-1500.0,0.00014795,2]
[419814558,1775394648861,-1500.0,0.00014795,2]
[419814559,1775394648871,-1503.24663382,0.00014795,2]
[419814560,1775394648881,-1500.0,0.00014795,2]
[419814561,1775394648891,-1500.0,0.00014795,2]
[419814562,1775394648900,-1500.0,0.00014795,2]
[419814563,1775394648910,-1500.0,0.00014795,2]
[419814564,1775394648920,-418.3764967,0.00014795,2]
[419814565,1775394648929,-186.27125357,0.00014795,2]
[419814566,1775394648939,-1500.0,0.00014795,2]
[419814567,1775394648949,-1500.0,0.00014795,2]
[419814568,1775394648959,-1500.0,0.00014795,2]
[419814569,1775394648969,-1500.0,0.00014795,2]
[419814570,1775394648979,-1500.0,0.00014795,2]
[419814571,1775394648989,-1500.0,0.00014795,2]
[419814572,1775394648999,-184.0,0.00014795,2]
[419814573,1775394649009,-785.67,0.00014818,2]
[419814574,1775394649019,-687.92204042,0.000149,2]
[419814575,1775394649029,-289.56339563,0.00014908,2]
[419814576,1775394649039,-10286.0724003,0.00014914,2]
[419814577,1775394649048,-481.62,0.0001492,2]
[419814578,1775394649058,-200.0,0.00014932,2]
[419814579,1775394649068,-600.0,0.00014977,2]
[419814580,1775394649077,-340.29,0.00014977,2]
[419814581,1775394649087,-2067.27601646,0.00015,2]
[419814582,1775394649097,-8047.93487487,0.00015,2]
[419814583,1775394649106,-300.0,0.00015,2]
[419814584,1775394649116,-500.0,0.00015011,2]
[419814585,1775394649126,-500.0,0.00015015,2]
[419814586,1775394649135,-2000.0,0.00015015,2]
[419814587,1775394649145,-881.74,0.00015033,2]
[419814588,1775394649154,-5957.33,0.00015068,2]
[419814589,1775394649164,-900.0,0.00015068,2]
[419814590,1775394649173,-800.0,0.00015068,2]
[419814591,1775394649183,-797.22,0.00015092,2]
[419814592,1775394649193,-1000.46413845,0.00015201,2]
[419814593,1775394649203,-155.80569417,0.00015277,2]
[419814594,1775394649212,-244.9438,0.000153,2]
[419814595,1775394649222,-1517.64,0.000153,2]
[419814596,1775394649232,-2000.0,0.00015301,2]
[419814597,1775394649241,-505.3,0.00015307,2]
[419814598,1775394649251,-1171.96403511,0.00015342,2]
[419814599,1775394649260,-1000.0,0.00015342,2]
[419814600,1775394649270,-500.0,0.00015342,2]
[419814601,1775394649280,-1193.24301277,0.00015342,2]
[419814602,1775394649290,-1000.0,0.00015342,2]
[419814603,1775394649301,-2000.0,0.00015342,2]
[419814604,1775394649311,-740.76074935,0.00015342,2]
[419814605,1775394649321,-1432.23819105,0.00015342,2]
[419814606,1775394649331,-2000.0,0.00015342,2]
[419814607,1775394649342,-2000.0,0.00015342,2]
[419814608,1775394649351,-1189.37318328,0.00015342,2]
[419814609,1775394649361,-2000.0,0.00015342,2]
[419814610,1775394649371,-2000.0,0.00015342,2]
[419814611,1775394649380,-2000.0,0.00015342,2]
[419814612,1775394649390,-1762.51968471,0.00015342,2]
[419814613,1775394649399,-2000.0,0.00015342,2]
[419814614,1775394649409,-1143.48326881,0.00015342,2]
[419814615,1775394649419,-2000.0,0.00015342,2]
[419814616,1775394649429,-2000.0,0.00015342,2]
[419814617,1775394649439,-500.0,0.00015342,2]
[419814618,1775394649449,-2000.0,0.00015342,2]
[419814619,1775394649459,-1558.37452133,0.00015342,2]
[419814620,1775394649468,-2000.0,0.00015342,2]
[419814621,1775394649478,-2000.0,0.00015342,2]
[419814622,1775394649487,-2000.0,0.00015342,2]
[419814623,1775394649497,-1753.85680119,0.00015342,2]
[419814624,1775394649507,-1000.0,0.00015342,2]
[419814625,1775394649516,-2000.0,0.00015342,2]
[419814626,1775394649525,-2000.0,0.00015342,2]
[419814627,1775394649535,-347.07116371,0.00015342,2]
[419814628,1775394649544,-512.60947705,0.000154,2]
[419814629,1775394649553,-2000.0,0.00015401,2]
[419814630,1775394649563,-503.0,0.00015417,4]
[419814631,1775394649573,-15609.82,0.00015471,2]
[419814632,1775394649582,-2460.01,0.00015471,2]
[419814633,1775394649592,-6742.52,0.00015471,2]
[419814634,1775394649601,-28985.77,0.00015471,2]
[419814635,1775394649611,-2396.23,0.00015471,2]
[419814636,1775394649620,-200.0,0.0001548,2]
[419814637,1775394649629,-1661.34286454,0.000155,3]
[419814638,1775394649639,-5643.7200837,0.000155,3]
[419814639,1775394649648,-1231.52674065,0.000155,2]
[419814640,1775394649657,-2000.0,0.00015501,2]
[419814641,1775394649666,-4000.0,0.00015507,2]
[419814642,1775394649675,-5888.0,0.00015547,2]
[419814643,1775394649685,-5888.0,0.00015584,2]
[419814644,1775394649695,-2000.0,0.00015601,2]
[419814645,1775394649705,-5888.0,0.00015625,2]
[419814646,1775394649714,-733.77686062,0.00015634,2]
[419814647,1775394649724,-2258.0,0.00015639,2]
[419814648,1775394649734,-9035.0,0.00015639,2]
[419814649,1775394649744,-525.0,0.000157,2]
[419814650,1775394649754,-2001.27,0.000157,2]
[419814651,1775394649763,-462.21,0.000157,2]
[419814652,1775394649772,-2000.0,0.00015701,2]
[419814653,1775394649782,-5888.0,0.00015718,2]
[419814654,1775394649791,-5888.0,0.00015746,2]
[419814655,1775394649800,-262.0,0.00015753,2]
[419814656,1775394649810,-5957.33,0.00015753,2]
[419814657,1775394649819,-5888.0,0.00015759,2]
[419814658,1775394649829,-151.39,0.00015779,2]
[419814659,1775394649838,-151.39,0.00015779,2]
[419814660,1775394649848,-151.39,0.00015779,2]
[419814661,1775394649857,-151.39,0.00015779,2]
[419814662,1775394649867,-5888.0,0.00015791,2]
[419814663,1775394649876,-2744.68006612,0.000158,2]
[419814664,1775394649887,-2000.0,0.00015801,2]
[419814665,1775394649897,-3620.0,0.00015819,2]
[419814666,1775394649906,-500.0,0.00015873,2]
[419814667,1775394649916,-500.0,0.0001589,2]
[419814668,1775394649925,-500.0,0.0001589,2]
[419814669,1775394649934,-500.0,0.0001589,2]
[419814670,1775394649944,-500.0,0.0001589,2]
[419814671,1775394649955,-500.0,0.0001589,2]
[419814672,1775394649966,-500.0,0.0001589,2]
[419814673,1775394649976,-500.0,0.0001589,2]
[419814674,1775394649987,-500.0,0.0001589,2]
[419814675,1775394649997,-500.0,0.0001589,2]
[419814676,1775394650006,-500.0,0.0001589,2]
[419814677,1775394650015,-500.0,0.0001589,2]
[419814678,1775394650025,-500.0,0.0001589,2]
[419814679,1775394650034,-500.0,0.0001589,2]
[419814680,1775394650044,-500.0,0.0001589,2]
[419814681,1775394650053,-500.0,0.0001589,2]
[419814682,1775394650062,-648.46954732,0.0001589,2]
[419814683,1775394650072,-774.39293865,0.0001589,3]
[419814684,1775394650081,-30000.0,0.0001589,2]
[419814685,1775394650091,-632.56892853,0.0001589,3]
[419814686,1775394650102,-109826.99630296,0.0001589,3]
[419814687,1775394650112,-2500.0,0.0001589,2]
[419814688,1775394650121,-2500.0,0.0001589,2]
[419814689,1775394650131,-2509.3602543,0.0001589,2]
[419814690,1775394650142,-500.0,0.0001589,2]
[419814691,1775394650152,-1065.40450783,0.0001589,2]
[419814692,1775394650163,-2500.0,0.0001589,2]
[419814693,1775394650172,-2500.0,0.0001589,2]
[419814694,1775394650182,-2447.77606198,0.0001589,2]
[419814695,1775394650192,-950.63286364,0.0001589,2]
[419814696,1775394650203,-1100.33490613,0.0001589,2]
[419814697,1775394650214,-2500.0,0.0001589,2]
[419814698,1775394650225,-823.00574972,0.0001589,2]
[419814699,1775394650234,-2500.0,0.0001589,2]
[419814700,1775394650244,-2006.37622858,0.0001589,2]
[419814701,1775394650255,-4000.0,0.00015895,2]
[419814702,1775394650265,-5888.0,0.00015895,2]
[419814703,1775394650275,-5888.0,0.00015897,2]
[419814704,1775394650285,-24594.73927756,0.000159,2]
[419814705,1775394650296,-2251810.66124424,0.000159,5]
[419814706,1775394652437,-151.0,0.0001,2]
[419814707,1775394652448,-150.0,0.00010959,2]
[419814708,1775394652458,-46.73392515,0.000159,5]
[419814709,1775394653469,-1.57549137,0.000159,5]
[419814710,1775394653677,-10000.0,8.832e-05,2]
[419814711,1775394653687,-636218.15998563,0.000159,5]
[419814712,1775394653697,-1883.25820647,0.000159,2]
[419814713,1775394653707,-17857.39954513,0.000159,2]
[419814714,1775394653716,-2000.0,0.00015901,2]
[419814715,1775394653726,-5888.0,0.00015912,2]
[419814716,1775394653736,-10286.0724003,0.00015928,2]
[419814717,1775394653747,-1000.0,0.00015943,2]
[419814718,1775394653757,-1000.0,0.00015943,2]
[419814719,1775394653766,-1000.0,0.00015943,2]
[419814720,1775394653775,-1000.0,0.00015943,2]
[419814721,1775394653785,-1000.0,0.00015943,2]
[419814722,1775394653794,-287.64959053,0.00015958,2]
[419814723,1775394653804,-5000.0,0.0001596,2]
[419814724,1775394653814,-5888.0,0.00015968,2]
[419814725,1775394653823,-500.0,0.00015992,2]
[419814726,1775394653835,-500.0,0.00015993,2]
[419814727,1775394653845,-500.0,0.00015994,2]
[419814728,1775394653855,-500.0,0.00015995,2]
[419814729,1775394653864,-500.0,0.00015996,2]
[419814730,1775394653874,-500.0,0.00015997,2]
[419814731,1775394653884,-500.0,0.00015998,2]
[419814732,1775394653894,-666.0,0.00015999,2]
[419814733,1775394653905,-666.0,0.00015999,2]
[419814734,1775394653914,-500.0,0.00015999,2]
[419814735,1775394653924,-6706475.74347675,0.00016,2]
[419814736,1775394654348,-418.52448629,0.00013698,2]
[419814737,1775394654357,-151.0,0.00013698,2]
[419814738,1775394654367,-728.36433988,0.00016,2]
[419814739,1775394654919,-6515.03349289,0.00016,2]
[419814740,1775394656862,500.0,8.827e-05,2]
[419814741,1775394656895,500.41911618,8.827e-05,2]
[419814742,1775394656927,500.0,8.827e-05,2]
[419814743,1775394656957,500.0,8.827e-05,2]
[419814744,1775394656992,500.0,8.827e-05,2]
[419814745,1775394657031,500.0,8.827e-05,2]
[419814746,1775394657070,500.0,8.827e-05,2]
[419814747,1775394657100,500.0,8.827e-05,2]
[419814748,1775394657130,500.0,8.827e-05,2]
[419814749,1775394657161,500.0,8.827e-05,2]
[419814750,1775394657191,507.20933065,8.827e-05,2]
[419814751,1775394657230,500.0,8.827e-05,2]
[419814752,1775394657268,500.0,8.827e-05,2]
[419814753,1775394657304,500.0,8.827e-05,2]
[419814754,1775394657337,500.0,8.827e-05,2]
[419814755,1775394665197,3628.1612,8.829e-05,2]
[419814756,1775394709478,425.36021124,8.827e-05,2]
[419814757,1775394709513,299.96275471,8.827e-05,2]
[419814758,1775394709554,516.8891154,8.827e-05,2]
[419814759,1775394711584,500.0,8.827e-05,2]
[419814760,1775394736303,500.0,8.827e-05,2]
[419814761,1775394781180,300.0,8.828e-05,2]
[419814762,1775394786790,500.0,8.827e-05,2]
[419814763,1775394786854,167.4677034,8.827e-05,2]
[419814764,1775394789596,159.56306397,8.827e-05,2]
[419814765,1775394793170,6630.76715128,8.828e-05,2]
[419814766,1775394793197,10000.01,8.828e-05,2]
[419814767,1775394793223,10000.01,8.828e-05,2]
[419814768,1775394793249,10000.01,8.828e-05,2]
[419814769,1775394793276,10000.01,8.828e-05,2]
[419814773,1775395111835,150.0,8.561e-05,2]
[419814804,1775395262702,-1200.0,8.728e-05,2]
[419814805,1775395262725,-300.0,8.728e-05,2]
[419814806,1775395263379,-300.0,8.728e-05,2]
[419814807,1775395263474,-8200.0,8.729e-05,2]
[419814808,1775395265001,-193.0,8.729e-05,2]
[419814809,1775395265024,-1800.0,8.729e-05,2]
[419814810,1775395265046,-1927.0845,8.795e-05,2]
[419814811,1775395265069,-150.0,8.802e-05,2]